[Event "Titled Tuesday Blitz March 28 Early 2023"]
[White "Jeet, Jain"]
[Black "So, Wesley"]
[WhiteFideId "5073022"]
[BlackFideId "5202213"]
[WhiteElo "2067"]
[BlackElo "2739"]
[Result "0-1"]
[Round "01"]
[TimeControl "180+2"]
[Date "2023.03.28"]
[WhiteClock "0:00:09"]
[BlackClock "0:00:46"]

1. Nf3 {[%clk 0:02:58]}  c5 {[%clk 0:02:56]} 2. g3 {[%clk 0:02:57]}  Nc6 {[%clk 0:02:54]} 3. Bg2 {[%clk 0:02:57]}  d5 {[%clk 0:02:54]} 4. d4 {[%clk 0:02:57]}  Nf6 {[%clk 0:02:53]} 5. O-O {[%clk 0:02:57]}  cxd4 {[%clk 0:02:49]} 6. Nxd4 {[%clk 0:02:56]}  e5 {[%clk 0:02:49]} 7. Nxc6 {[%clk 0:02:56]}  bxc6 {[%clk 0:02:50]} 8. c4 {[%clk 0:02:57]}  Rb8 {[%clk 0:02:51]} 9. cxd5 {[%clk 0:02:48]}  cxd5 {[%clk 0:02:52]} 10. Nc3 {[%clk 0:02:47]}  d4 {[%clk 0:02:51]} 11. Ne4 {[%clk 0:02:41]}  Nxe4 {[%clk 0:02:33]} 12. Bxe4 {[%clk 0:02:42]}  Bb7 {[%clk 0:02:34]} 13. Qa4+ {[%clk 0:02:35]}  Qd7 {[%clk 0:02:28]} 14. Qxa7 {[%clk 0:02:02]}  Bd6 {[%clk 0:02:29]} 15. Bxb7 {[%clk 0:02:01]}  Rxb7 {[%clk 0:02:26]} 16. Qa8+ {[%clk 0:02:00]}  Rb8 {[%clk 0:02:24]} 17. Qd5 {[%clk 0:01:55]}  Rb5 {[%clk 0:02:21]} 18. Qa8+ {[%clk 0:01:44]}  Rb8 {[%clk 0:02:21]} 19. Qd5 {[%clk 0:01:44]}  Ke7 {[%clk 0:02:20]} 20. b3 {[%clk 0:01:43]}  Rhc8 {[%clk 0:02:15]} 21. e3 {[%clk 0:01:35]}  Qe6 {[%clk 0:02:05]} 22. Qxe6+ {[%clk 0:01:27]}  fxe6 {[%clk 0:02:03]} 23. exd4 {[%clk 0:01:21]}  exd4 {[%clk 0:02:04]} 24. Bb2 {[%clk 0:01:19]}  e5 {[%clk 0:02:02]} 25. Rac1 {[%clk 0:01:19]}  Ke6 {[%clk 0:01:55]} 26. f4 {[%clk 0:01:14]}  Kd5 {[%clk 0:01:44]} 27. fxe5 {[%clk 0:01:13]}  Bxe5 {[%clk 0:01:45]} 28. Kf2 {[%clk 0:00:52]}  Re8 {[%clk 0:01:21]} 29. Rfd1 {[%clk 0:00:46]}  Rb4 {[%clk 0:01:10]} 30. Rd3 {[%clk 0:00:34]}  Rf8+ {[%clk 0:00:59]} 31. Ke2 {[%clk 0:00:32]}  Rb6 {[%clk 0:00:53]} 32. Rc4 {[%clk 0:00:17]}  Rh6 {[%clk 0:00:51]} 33. h4 {[%clk 0:00:13]}  Re6 {[%clk 0:00:51]} 34. Kd1 {[%clk 0:00:12]}  Ke4 {[%clk 0:00:51]} 35. Rd2 {[%clk 0:00:09]}  Rd6 {[%clk 0:00:51]} 36. Ba3 {[%clk 0:00:08]}  Rf1+ {[%clk 0:00:49]} 37. Ke2 {[%clk 0:00:09]}  Rdf6 {[%clk 0:00:46]} 0-1


[Site "https://www.chess.com"]

[Event "Titled Tuesday Blitz March 28 Early 2023"]
[White "Nakamura, Hikaru"]
[Black "Yelisieiev, Yevhenii"]
[WhiteFideId "2016192"]
[BlackFideId "14139642"]
[WhiteElo "2879"]
[BlackElo "2447"]
[Result "1-0"]
[Round "01"]
[TimeControl "180+2"]
[Date "2023.03.28"]
[WhiteClock "0:01:23"]
[BlackClock "0:00:01"]

1. e4 {[%clk 0:03:00]}  d6 {[%clk 0:02:56]} 2. d4 {[%clk 0:03:00]}  Nf6 {[%clk 0:02:57]} 3. Nc3 {[%clk 0:03:01]}  e5 {[%clk 0:02:57]} 4. Nf3 {[%clk 0:03:00]}  Nbd7 {[%clk 0:02:57]} 5. Bc4 {[%clk 0:02:59]}  Be7 {[%clk 0:02:57]} 6. O-O {[%clk 0:02:58]}  O-O {[%clk 0:02:57]} 7. a4 {[%clk 0:02:58]}  c6 {[%clk 0:02:57]} 8. Qe2 {[%clk 0:02:58]}  a5 {[%clk 0:02:51]} 9. Rd1 {[%clk 0:02:56]}  exd4 {[%clk 0:02:35]} 10. Nxd4 {[%clk 0:02:55]}  Nc5 {[%clk 0:02:35]} 11. e5 {[%clk 0:02:53]}  Ne8 {[%clk 0:02:00]} 12. exd6 {[%clk 0:02:51]}  Nxd6 {[%clk 0:01:54]} 13. Ba2 {[%clk 0:02:51]}  Re8 {[%clk 0:01:36]} 14. Bf4 {[%clk 0:02:43]}  Bf8 {[%clk 0:01:28]} 15. Qh5 {[%clk 0:02:41]}  Qf6 {[%clk 0:01:25]} 16. Bxd6 {[%clk 0:02:22]}  Bxd6 {[%clk 0:01:21]} 17. Nf3 {[%clk 0:02:20]}  g6 {[%clk 0:01:07]} 18. Qg5 {[%clk 0:02:16]}  Be7 {[%clk 0:01:02]} 19. h4 {[%clk 0:02:07]}  Be6 {[%clk 0:00:59]} 20. Bxe6 {[%clk 0:02:05]}  Nxe6 {[%clk 0:00:58]} 21. Qxf6 {[%clk 0:02:05]}  Bxf6 {[%clk 0:00:59]} 22. Ne4 {[%clk 0:02:06]}  Bg7 {[%clk 0:00:33]} 23. c3 {[%clk 0:02:04]}  Rad8 {[%clk 0:00:32]} 24. Nd6 {[%clk 0:02:05]}  Re7 {[%clk 0:00:30]} 25. Nc4 {[%clk 0:02:05]}  Rxd1+ {[%clk 0:00:23]} 26. Rxd1 {[%clk 0:02:05]}  Nc5 {[%clk 0:00:24]} 27. Ra1 {[%clk 0:02:04]}  Re2 {[%clk 0:00:20]} 28. Kf1 {[%clk 0:02:03]}  Re4 {[%clk 0:00:16]} 29. Nxa5 {[%clk 0:02:04]}  Rxa4 {[%clk 0:00:17]} 30. Rxa4 {[%clk 0:01:52]}  Nxa4 {[%clk 0:00:18]} 31. b3 {[%clk 0:01:52]}  Nxc3 {[%clk 0:00:18]} 32. Nxb7 {[%clk 0:01:53]}  f5 {[%clk 0:00:17]} 33. Nd8 {[%clk 0:01:49]}  c5 {[%clk 0:00:16]} 34. Ne6 {[%clk 0:01:47]}  Ne4 {[%clk 0:00:16]} 35. Ke2 {[%clk 0:01:47]}  Bf6 {[%clk 0:00:15]} 36. g3 {[%clk 0:01:46]}  Kf7 {[%clk 0:00:15]} 37. Nf4 {[%clk 0:01:45]}  Ke8 {[%clk 0:00:11]} 38. Ne1 {[%clk 0:01:37]}  Kd7 {[%clk 0:00:10]} 39. Ned3 {[%clk 0:01:33]}  Kc6 {[%clk 0:00:10]} 40. Ne6 {[%clk 0:01:33]}  Be7 {[%clk 0:00:10]} 41. Ke3 {[%clk 0:01:32]}  Kd5 {[%clk 0:00:09]} 42. Nef4+ {[%clk 0:01:31]}  Kc6 {[%clk 0:00:09]} 43. Ne5+ {[%clk 0:01:30]}  Kb5 {[%clk 0:00:09]} 44. Nd5 {[%clk 0:01:29]}  Bd6 {[%clk 0:00:09]} 45. Nc4 {[%clk 0:01:29]}  Bb8 {[%clk 0:00:07]} 46. g4 {[%clk 0:01:30]}  Nd6 {[%clk 0:00:07]} 47. Nxd6+ {[%clk 0:01:24]}  Bxd6 {[%clk 0:00:08]} 48. gxf5 {[%clk 0:01:24]}  gxf5 {[%clk 0:00:09]} 49. h5 {[%clk 0:01:24]}  c4 {[%clk 0:00:08]} 50. bxc4+ {[%clk 0:01:25]}  Kxc4 {[%clk 0:00:09]} 51. Nf6 {[%clk 0:01:26]}  h6 {[%clk 0:00:09]} 52. Ng8 {[%clk 0:01:27]}  Bf8 {[%clk 0:00:09]} 53. Kf4 {[%clk 0:01:27]}  Kd3 {[%clk 0:00:09]} 54. Kxf5 {[%clk 0:01:27]}  Ke2 {[%clk 0:00:09]} 55. f4 {[%clk 0:01:26]}  Kf3 {[%clk 0:00:09]} 56. Nf6 {[%clk 0:01:24]}  Kg3 {[%clk 0:00:09]} 57. Nd5 {[%clk 0:01:20]}  Kh4 {[%clk 0:00:09]} 58. Kg6 {[%clk 0:01:20]}  Kg4 {[%clk 0:00:06]} 59. f5 {[%clk 0:01:21]}  Bc5 {[%clk 0:00:03]} 60. Nf6+ {[%clk 0:01:21]}  Kf4 {[%clk 0:00:02]} 61. Nd7 {[%clk 0:01:22]}  Bd4 {[%clk 0:00:02]} 62. f6 {[%clk 0:01:23]}  Kg4 {[%clk 0:00:01]} 63. f7 {[%clk 0:01:23]} 1-0


[Site "https://www.chess.com"]

[Event "Titled Tuesday Blitz March 28 Early 2023"]
[White "lemayvega"]
[Black "Erigaisi Arjun"]
[BlackFideId "35009192"]
[WhiteElo "2530"]
[BlackElo "2737"]
[Result "0-1"]
[Round "01"]
[TimeControl "180+2"]
[Date "2023.03.28"]
[WhiteClock "0:00:05"]
[BlackClock "0:01:56"]

1. e4 {[%clk 0:02:55]}  g6 {[%clk 0:03:00]} 2. d4 {[%clk 0:02:52]}  Bg7 {[%clk 0:03:01]} 3. Nc3 {[%clk 0:02:51]}  d6 {[%clk 0:03:01]} 4. Be3 {[%clk 0:02:50]}  a6 {[%clk 0:03:00]} 5. Qd2 {[%clk 0:02:49]}  b5 {[%clk 0:02:59]} 6. a3 {[%clk 0:02:49]}  Nd7 {[%clk 0:02:59]} 7. Nf3 {[%clk 0:02:46]}  Bb7 {[%clk 0:02:58]} 8. d5 {[%clk 0:02:41]}  Ngf6 {[%clk 0:02:56]} 9. h3 {[%clk 0:02:40]}  c6 {[%clk 0:02:50]} 10. Bh6 {[%clk 0:02:05]}  O-O {[%clk 0:02:39]} 11. Bxg7 {[%clk 0:02:01]}  Kxg7 {[%clk 0:02:40]} 12. dxc6 {[%clk 0:01:51]}  Bxc6 {[%clk 0:02:41]} 13. Bd3 {[%clk 0:01:51]}  Nc5 {[%clk 0:02:38]} 14. Qe2 {[%clk 0:01:47]}  Qb6 {[%clk 0:02:35]} 15. O-O {[%clk 0:01:42]}  e5 {[%clk 0:02:36]} 16. Rfd1 {[%clk 0:01:36]}  b4 {[%clk 0:02:32]} 17. axb4 {[%clk 0:01:31]}  Qxb4 {[%clk 0:02:33]} 18. Ra2 {[%clk 0:00:51]}  Ncxe4 {[%clk 0:02:28]} 19. Bxe4 {[%clk 0:00:42]}  Bxe4 {[%clk 0:02:24]} 20. Nxe4 {[%clk 0:00:34]}  Qxe4 {[%clk 0:02:25]} 21. Qxe4 {[%clk 0:00:19]}  Nxe4 {[%clk 0:02:26]} 22. Rda1 {[%clk 0:00:18]}  Rfc8 {[%clk 0:02:25]} 23. c3 {[%clk 0:00:18]}  Rab8 {[%clk 0:02:26]} 24. Rxa6 {[%clk 0:00:15]}  Rxb2 {[%clk 0:02:26]} 25. Ra7 {[%clk 0:00:16]}  Rxf2 {[%clk 0:02:13]} 26. Re1 {[%clk 0:00:13]}  Rxf3 {[%clk 0:02:12]} 27. gxf3 {[%clk 0:00:13]}  Ng5 {[%clk 0:02:13]} 28. Kf2 {[%clk 0:00:13]}  Rxc3 {[%clk 0:02:13]} 29. Rb1 {[%clk 0:00:13]}  Rxf3+ {[%clk 0:02:11]} 30. Kg2 {[%clk 0:00:13]}  Rxh3 {[%clk 0:02:08]} 31. Rbb7 {[%clk 0:00:14]}  Rd3 {[%clk 0:02:06]} 32. Rd7 {[%clk 0:00:12]}  Kf6 {[%clk 0:02:00]} 33. Ra6 {[%clk 0:00:11]}  Ke6 {[%clk 0:02:01]} 34. Rd8 {[%clk 0:00:11]}  h5 {[%clk 0:02:00]} 35. Re8+ {[%clk 0:00:10]}  Kf5 {[%clk 0:02:01]} 36. Re7 {[%clk 0:00:08]}  h4 {[%clk 0:01:59]} 37. Ra2 {[%clk 0:00:08]}  Kg4 {[%clk 0:01:57]} 38. Rea7 {[%clk 0:00:06]}  h3+ {[%clk 0:01:55]} 39. Kh2 {[%clk 0:00:05]}  Nf3+ {[%clk 0:01:55]} 40. Kh1 {[%clk 0:00:05]}  Rd1# {[%clk 0:01:56]} 0-1


[Site "https://www.chess.com"]

[Event "Titled Tuesday Blitz March 28 Early 2023"]
[White "Dubov, Daniil"]
[Black "Hajiyev, Kanan"]
[WhiteFideId "24126055"]
[BlackFideId "13404148"]
[WhiteElo "2802"]
[BlackElo "2103"]
[Result "1-0"]
[Round "01"]
[TimeControl "180+2"]
[Date "2023.03.28"]
[WhiteClock "0:01:49"]
[BlackClock "0:00:04"]

1. d4 {[%clk 0:03:00]}  d5 {[%clk 0:02:58]} 2. c4 {[%clk 0:03:00]}  c6 {[%clk 0:02:59]} 3. Nc3 {[%clk 0:03:00]}  Nf6 {[%clk 0:02:59]} 4. Nf3 {[%clk 0:03:01]}  g6 {[%clk 0:02:59]} 5. cxd5 {[%clk 0:03:00]}  cxd5 {[%clk 0:03:00]} 6. Bf4 {[%clk 0:03:00]}  Bg7 {[%clk 0:02:59]} 7. e3 {[%clk 0:02:58]}  O-O {[%clk 0:02:59]} 8. Be2 {[%clk 0:02:58]}  Ne4 {[%clk 0:02:57]} 9. Nxe4 {[%clk 0:02:56]}  dxe4 {[%clk 0:02:57]} 10. Nd2 {[%clk 0:02:57]}  f5 {[%clk 0:02:52]} 11. O-O {[%clk 0:02:56]}  Nc6 {[%clk 0:02:51]} 12. Qb3+ {[%clk 0:02:53]}  Kh8 {[%clk 0:02:49]} 13. Nc4 {[%clk 0:02:54]}  b6 {[%clk 0:02:31]} 14. Rfd1 {[%clk 0:02:47]}  Qd5 {[%clk 0:02:03]} 15. Rac1 {[%clk 0:02:44]}  Be6 {[%clk 0:01:58]} 16. Nxb6 {[%clk 0:02:42]}  axb6 {[%clk 0:01:26]} 17. Bc4 {[%clk 0:02:42]}  Na5 {[%clk 0:01:26]} 18. Bxd5 {[%clk 0:02:42]}  Nxb3 {[%clk 0:01:26]} 19. Bxb3 {[%clk 0:02:42]}  Bxb3 {[%clk 0:01:20]} 20. axb3 {[%clk 0:02:43]}  Rfc8 {[%clk 0:01:19]} 21. h4 {[%clk 0:02:31]}  Kg8 {[%clk 0:01:19]} 22. Bc7 {[%clk 0:02:31]}  Kf7 {[%clk 0:01:06]} 23. Bxb6 {[%clk 0:02:28]}  Rcb8 {[%clk 0:00:52]} 24. Bc5 {[%clk 0:02:24]}  Rxb3 {[%clk 0:00:51]} 25. Ba3 {[%clk 0:02:25]}  Ra7 {[%clk 0:00:45]} 26. g3 {[%clk 0:02:23]}  Rab7 {[%clk 0:00:38]} 27. Rc6 {[%clk 0:02:22]}  Bf6 {[%clk 0:00:32]} 28. Rdc1 {[%clk 0:02:20]}  Ke8 {[%clk 0:00:32]} 29. Rc7 {[%clk 0:02:16]}  Kf7 {[%clk 0:00:28]} 30. Kf1 {[%clk 0:02:15]}  Ke6 {[%clk 0:00:28]} 31. Ke2 {[%clk 0:02:13]}  Kf7 {[%clk 0:00:25]} 32. Kd2 {[%clk 0:02:11]}  Ke8 {[%clk 0:00:24]} 33. Rxb7 {[%clk 0:02:10]}  Rxb7 {[%clk 0:00:25]} 34. Rc4 {[%clk 0:02:08]}  Kd7 {[%clk 0:00:25]} 35. Kc2 {[%clk 0:02:08]}  e5 {[%clk 0:00:24]} 36. d5 {[%clk 0:02:05]}  h6 {[%clk 0:00:23]} 37. Bc5 {[%clk 0:02:04]}  g5 {[%clk 0:00:21]} 38. hxg5 {[%clk 0:02:03]}  hxg5 {[%clk 0:00:22]} 39. Ra4 {[%clk 0:02:00]}  Be7 {[%clk 0:00:17]} 40. b4 {[%clk 0:01:53]}  f4 {[%clk 0:00:17]} 41. Kc3 {[%clk 0:01:52]}  g4 {[%clk 0:00:16]} 42. Kc4 {[%clk 0:01:50]}  Bg5 {[%clk 0:00:16]} 43. b5 {[%clk 0:01:48]}  Rc7 {[%clk 0:00:13]} 44. b6 {[%clk 0:01:47]}  Rxc5+ {[%clk 0:00:08]} 45. Kxc5 {[%clk 0:01:47]}  fxe3 {[%clk 0:00:09]} 46. Ra7+ {[%clk 0:01:47]}  Ke8 {[%clk 0:00:07]} 47. fxe3 {[%clk 0:01:48]}  Bxe3+ {[%clk 0:00:06]} 48. Kc6 {[%clk 0:01:49]}  Bd4 {[%clk 0:00:05]} 49. Ra8+ {[%clk 0:01:48]}  Ke7 {[%clk 0:00:05]} 50. b7 {[%clk 0:01:49]}  e3 {[%clk 0:00:04]} 51. b8=Q {[%clk 0:01:49]} 1-0


[Site "https://www.chess.com"]

[Event "Titled Tuesday Blitz March 28 Early 2023"]
[White "Rangel, Daniel"]
[Black "Giri, Anish"]
[WhiteFideId "2124475"]
[BlackFideId "24116068"]
[WhiteElo "2256"]
[BlackElo "2807"]
[Result "0-1"]
[Round "01"]
[TimeControl "180+2"]
[Date "2023.03.28"]
[WhiteClock "0:00:07"]
[BlackClock "0:00:13"]

1. c4 {[%clk 0:02:57]}  Nf6 {[%clk 0:02:59]} 2. g3 {[%clk 0:02:58]}  c6 {[%clk 0:02:58]} 3. Bg2 {[%clk 0:02:58]}  d5 {[%clk 0:02:59]} 4. Nf3 {[%clk 0:02:58]}  g6 {[%clk 0:02:56]} 5. b3 {[%clk 0:02:55]}  Bg7 {[%clk 0:02:55]} 6. Bb2 {[%clk 0:02:55]}  O-O {[%clk 0:02:55]} 7. O-O {[%clk 0:02:56]}  a5 {[%clk 0:02:56]} 8. Nc3 {[%clk 0:02:54]}  Bg4 {[%clk 0:02:53]} 9. Ne5 {[%clk 0:02:50]}  Be6 {[%clk 0:02:51]} 10. cxd5 {[%clk 0:02:48]}  Nxd5 {[%clk 0:02:50]} 11. Nd3 {[%clk 0:02:41]}  Na6 {[%clk 0:02:26]} 12. Nxd5 {[%clk 0:02:25]}  Bxd5 {[%clk 0:02:24]} 13. Bxg7 {[%clk 0:02:25]}  Kxg7 {[%clk 0:02:25]} 14. Bxd5 {[%clk 0:02:23]}  Qxd5 {[%clk 0:02:25]} 15. Nf4 {[%clk 0:02:21]}  Qd6 {[%clk 0:02:25]} 16. d4 {[%clk 0:02:20]}  Rfd8 {[%clk 0:02:25]} 17. e3 {[%clk 0:02:19]}  e5 {[%clk 0:02:25]} 18. dxe5 {[%clk 0:02:19]}  Qxe5 {[%clk 0:02:26]} 19. Qe2 {[%clk 0:02:11]}  Nc5 {[%clk 0:02:26]} 20. Rad1 {[%clk 0:02:08]}  Ne4 {[%clk 0:02:26]} 21. h4 {[%clk 0:01:34]}  h5 {[%clk 0:02:23]} 22. Qc2 {[%clk 0:01:29]}  Nc3 {[%clk 0:02:02]} 23. Rd3 {[%clk 0:01:15]}  Rxd3 {[%clk 0:01:44]} 24. Nxd3 {[%clk 0:01:16]}  Qf6 {[%clk 0:01:45]} 25. Nf4 {[%clk 0:01:12]}  Rd8 {[%clk 0:01:42]} 26. Rc1 {[%clk 0:01:05]}  Nb5 {[%clk 0:01:39]} 27. a4 {[%clk 0:01:01]}  Nd6 {[%clk 0:01:18]} 28. Rd1 {[%clk 0:01:00]}  Kh6 {[%clk 0:00:50]} 29. Rd4 {[%clk 0:00:54]}  Nf5 {[%clk 0:00:45]} 30. Rxd8 {[%clk 0:00:53]}  Qxd8 {[%clk 0:00:46]} 31. Qc3 {[%clk 0:00:47]}  Kh7 {[%clk 0:00:43]} 32. Kg2 {[%clk 0:00:31]}  Nh6 {[%clk 0:00:42]} 33. Qc4 {[%clk 0:00:29]}  Qe7 {[%clk 0:00:35]} 34. Qc3 {[%clk 0:00:28]}  Qe4+ {[%clk 0:00:30]} 35. Kg1 {[%clk 0:00:28]}  Ng4 {[%clk 0:00:29]} 36. Nh3 {[%clk 0:00:20]}  Qd5 {[%clk 0:00:22]} 37. Ng5+ {[%clk 0:00:19]}  Kg8 {[%clk 0:00:23]} 38. Qc2 {[%clk 0:00:15]}  Ne5 {[%clk 0:00:21]} 39. Qe4 {[%clk 0:00:12]}  Kf8 {[%clk 0:00:14]} 40. Qxd5 {[%clk 0:00:11]}  cxd5 {[%clk 0:00:14]} 41. Kf1 {[%clk 0:00:12]}  Nd3 {[%clk 0:00:14]} 42. Nh3 {[%clk 0:00:11]}  Ke7 {[%clk 0:00:09]} 43. Nf4 {[%clk 0:00:07]}  Nb4 {[%clk 0:00:05]} 44. Ke2 {[%clk 0:00:07]}  Kd6 {[%clk 0:00:05]} 45. Kd2 {[%clk 0:00:07]}  Nc6 {[%clk 0:00:04]} 46. Nd3 {[%clk 0:00:07]}  b6 {[%clk 0:00:04]} 47. Kc3 {[%clk 0:00:07]}  Ne7 {[%clk 0:00:04]} 48. Kd4 {[%clk 0:00:07]}  Nf5+ {[%clk 0:00:05]} 49. Kc3 {[%clk 0:00:08]}  Ng7 {[%clk 0:00:05]} 50. b4 {[%clk 0:00:08]}  Ne6 {[%clk 0:00:05]} 51. bxa5 {[%clk 0:00:08]}  bxa5 {[%clk 0:00:06]} 52. Nb2 {[%clk 0:00:06]}  Nc5 {[%clk 0:00:06]} 53. Kc2 {[%clk 0:00:06]}  Ne4 {[%clk 0:00:06]} 54. Nd1 {[%clk 0:00:05]}  Kc5 {[%clk 0:00:06]} 55. f3 {[%clk 0:00:04]}  Nxg3 {[%clk 0:00:06]} 56. Kd3 {[%clk 0:00:05]}  Nf5 {[%clk 0:00:06]} 57. e4 {[%clk 0:00:05]}  dxe4+ {[%clk 0:00:06]} 58. Kxe4 {[%clk 0:00:06]}  Nxh4 {[%clk 0:00:07]} 59. f4 {[%clk 0:00:06]}  Nf5 {[%clk 0:00:07]} 60. Ke5 {[%clk 0:00:06]}  h4 {[%clk 0:00:07]} 61. Nf2 {[%clk 0:00:07]}  Nd6 {[%clk 0:00:06]} 62. Nh3 {[%clk 0:00:04]}  Ne8 {[%clk 0:00:07]} 63. Ke4 {[%clk 0:00:01]}  Kb4 {[%clk 0:00:07]} 64. Kd5 {[%clk 0:00:02]}  Kxa4 {[%clk 0:00:07]} 65. Kc6 {[%clk 0:00:03]}  Kb4 {[%clk 0:00:08]} 66. Kd7 {[%clk 0:00:03]}  a4 {[%clk 0:00:07]} 67. Kxe8 {[%clk 0:00:03]}  a3 {[%clk 0:00:08]} 68. Kxf7 {[%clk 0:00:04]}  a2 {[%clk 0:00:09]} 69. Kxg6 {[%clk 0:00:05]}  a1=Q {[%clk 0:00:09]} 70. f5 {[%clk 0:00:04]}  Qc3 {[%clk 0:00:09]} 71. Ng5 {[%clk 0:00:04]}  h3 {[%clk 0:00:09]} 72. f6 {[%clk 0:00:05]}  h2 {[%clk 0:00:09]} 73. f7 {[%clk 0:00:05]}  Qh8 {[%clk 0:00:08]} 74. Nh7 {[%clk 0:00:02]}  h1=Q {[%clk 0:00:08]} 75. f8=Q+ {[%clk 0:00:03]}  Qxf8 {[%clk 0:00:07]} 76. Nxf8 {[%clk 0:00:04]}  Kc5 {[%clk 0:00:08]} 77. Kf7 {[%clk 0:00:05]}  Kd6 {[%clk 0:00:09]} 78. Ng6 {[%clk 0:00:05]}  Qd5+ {[%clk 0:00:09]} 79. Kg7 {[%clk 0:00:06]}  Qd4+ {[%clk 0:00:09]} 80. Kh6 {[%clk 0:00:07]}  Qf6 {[%clk 0:00:09]} 81. Kh5 {[%clk 0:00:07]}  Ke6 {[%clk 0:00:09]} 82. Nh4 {[%clk 0:00:07]}  Ke5 {[%clk 0:00:10]} 83. Kg4 {[%clk 0:00:08]}  Qf4+ {[%clk 0:00:10]} 84. Kh3 {[%clk 0:00:08]}  Qe4 {[%clk 0:00:10]} 85. Kg3 {[%clk 0:00:08]}  Qe3+ {[%clk 0:00:10]} 86. Kg4 {[%clk 0:00:08]}  Qf4+ {[%clk 0:00:11]} 87. Kh3 {[%clk 0:00:09]}  Ke4 {[%clk 0:00:11]} 88. Ng2 {[%clk 0:00:08]}  Qg5 {[%clk 0:00:12]} 89. Kh2 {[%clk 0:00:08]}  Kf3 {[%clk 0:00:12]} 90. Ne1+ {[%clk 0:00:08]}  Ke2 {[%clk 0:00:13]} 91. Ng2 {[%clk 0:00:08]}  Kf2 {[%clk 0:00:13]} 92. Kh3 {[%clk 0:00:07]}  Qg3# {[%clk 0:00:13]} 0-1


[Site "https://www.chess.com"]

[Event "Titled Tuesday Blitz March 28 Early 2023"]
[White "Firouzja, Alireza"]
[Black "Sanchez Alvares, Kelvin Antonio"]
[WhiteFideId "12573981"]
[BlackFideId "3906680"]
[WhiteElo "2904"]
[BlackElo "2217"]
[Result "1-0"]
[Round "01"]
[TimeControl "180+2"]
[Date "2023.03.28"]
[WhiteClock "0:00:07"]
[BlackClock "0:00:01"]

1. e4 {[%clk 0:02:57]}  c5 {[%clk 0:02:59]} 2. Nf3 {[%clk 0:02:57]}  d6 {[%clk 0:02:59]} 3. d4 {[%clk 0:02:55]}  cxd4 {[%clk 0:03:00]} 4. Nxd4 {[%clk 0:02:56]}  Nf6 {[%clk 0:02:59]} 5. Nc3 {[%clk 0:02:56]}  g6 {[%clk 0:02:59]} 6. f3 {[%clk 0:02:52]}  Bg7 {[%clk 0:02:58]} 7. Be3 {[%clk 0:02:52]}  O-O {[%clk 0:02:58]} 8. Qd2 {[%clk 0:02:50]}  Nc6 {[%clk 0:02:58]} 9. O-O-O {[%clk 0:02:31]}  Nxd4 {[%clk 0:02:57]} 10. Bxd4 {[%clk 0:02:31]}  Be6 {[%clk 0:02:57]} 11. Kb1 {[%clk 0:02:24]}  Qc7 {[%clk 0:02:56]} 12. h4 {[%clk 0:02:17]}  Rfc8 {[%clk 0:02:54]} 13. h5 {[%clk 0:02:08]}  Qa5 {[%clk 0:02:51]} 14. hxg6 {[%clk 0:02:05]}  fxg6 {[%clk 0:02:51]} 15. Bxf6 {[%clk 0:01:39]}  Rxc3 {[%clk 0:02:23]} 16. Qxc3 {[%clk 0:00:54]}  Qxa2+ {[%clk 0:02:20]} 17. Kc1 {[%clk 0:00:54]}  Bxf6 {[%clk 0:02:18]} 18. Qa3 {[%clk 0:00:35]}  Bg5+ {[%clk 0:02:16]} 19. Rd2 {[%clk 0:00:35]}  Qxa3 {[%clk 0:02:13]} 20. bxa3 {[%clk 0:00:35]}  Bxd2+ {[%clk 0:02:12]} 21. Kxd2 {[%clk 0:00:35]}  h5 {[%clk 0:02:08]} 22. Bd3 {[%clk 0:00:35]}  Kg7 {[%clk 0:02:07]} 23. f4 {[%clk 0:00:19]}  Bf7 {[%clk 0:02:04]} 24. Rb1 {[%clk 0:00:17]}  b6 {[%clk 0:02:04]} 25. a4 {[%clk 0:00:18]}  Rb8 {[%clk 0:01:46]} 26. a5 {[%clk 0:00:17]}  Be8 {[%clk 0:01:42]} 27. axb6 {[%clk 0:00:17]}  Rxb6 {[%clk 0:01:36]} 28. Ra1 {[%clk 0:00:18]}  Rb7 {[%clk 0:01:36]} 29. Ra5 {[%clk 0:00:17]}  Rc7 {[%clk 0:01:35]} 30. g3 {[%clk 0:00:17]}  Bf7 {[%clk 0:01:29]} 31. e5 {[%clk 0:00:14]}  dxe5 {[%clk 0:01:22]} 32. Rxe5 {[%clk 0:00:15]}  Kf6 {[%clk 0:01:21]} 33. Ra5 {[%clk 0:00:15]}  Rd7 {[%clk 0:01:14]} 34. Ke3 {[%clk 0:00:15]}  Rc7 {[%clk 0:01:13]} 35. Kd4 {[%clk 0:00:15]}  Rd7+ {[%clk 0:01:12]} 36. Ke3 {[%clk 0:00:15]}  Rc7 {[%clk 0:01:12]} 37. Ra6+ {[%clk 0:00:15]}  Kg7 {[%clk 0:01:12]} 38. Kd2 {[%clk 0:00:15]}  Rd7 {[%clk 0:01:06]} 39. Ke2 {[%clk 0:00:15]}  Rc7 {[%clk 0:01:06]} 40. Ke3 {[%clk 0:00:15]}  Be8 {[%clk 0:01:03]} 41. c4 {[%clk 0:00:15]}  Bf7 {[%clk 0:00:41]} 42. Kd4 {[%clk 0:00:15]}  Rd7+ {[%clk 0:00:41]} 43. Kc3 {[%clk 0:00:16]}  Rc7 {[%clk 0:00:39]} 44. Kd4 {[%clk 0:00:16]}  Rd7+ {[%clk 0:00:39]} 45. Kc3 {[%clk 0:00:16]}  Rc7 {[%clk 0:00:40]} 46. Ra5 {[%clk 0:00:16]}  Be8 {[%clk 0:00:27]} 47. c5 {[%clk 0:00:15]}  Kf6 {[%clk 0:00:25]} 48. Kd4 {[%clk 0:00:12]}  e6 {[%clk 0:00:25]} 49. Bc4 {[%clk 0:00:08]}  Bc6 {[%clk 0:00:24]} 50. Ra6 {[%clk 0:00:08]}  Kf5 {[%clk 0:00:24]} 51. Bd3+ {[%clk 0:00:07]}  Kg4 {[%clk 0:00:19]} 52. Ke5 {[%clk 0:00:07]}  Kxg3 {[%clk 0:00:17]} 53. Bxg6 {[%clk 0:00:07]}  h4 {[%clk 0:00:16]} 54. Kd6 {[%clk 0:00:07]}  Bb7 {[%clk 0:00:01]} 55. Ra3+ {[%clk 0:00:07]} 1-0


[Site "https://www.chess.com"]